bitfinex-derivatives/quotes_SOLF0:USTF0_20250421
["timestamp","ask_amount","ask_price","bid_price","bid_amount"]
[1745237968962,7.1833,139.21,139.19,7.23055089]
[1745237969359,36.11149711,139.22,139.19,0.04655089]
[1745237969661,7.1837,139.21,139.19,0.04655089]
[1745237970363,7.1837,139.2,139.19,0.04655089]
[1745237970562,9.76292383,139.2,139.12,26.3]
[1745237970760,9.76292383,139.18,139.11,5.9662]
[1745237970960,33.4856,139.17,139.14,7.1865]
[1745237971764,33.53098708,139.17,139.14,7.24056293]
[1745237973266,7.1858,139.16,139.14,7.24056293]
[1745237975169,33.53078708,139.17,139.14,7.24056293]
[1745237975358,9.76292383,139.16,139.07,568.68]
[1745237975665,9.76292383,139.16,139.06,30.2629]
[1745237975865,9.76292383,139.16,139.1,7.1886]
[1745237976369,7.1882,139.12,139.09,7.1889]
[1745237976566,0.04743199,139.14,139.12,0.04935024]
[1745237976766,7.1878,139.13,139.06,30.2629]
[1745237976958,9.76292383,139.16,139.12,0.04837767]
[1745237977363,0.04696804,139.15,139.13,0.04907935]
[1745237977559,7.1871,139.14,139.11,7.1879]
[1745237977765,9.76292383,139.16,139.13,0.05174325]
[1745237977963,0.05509151,139.14,139.06,30.2629]
[1745237978163,0.05509151,139.14,139.13,0.04730434]
[1745237978363,0.05509151,139.14,139.07,9.76292383]
[1745237978759,0.05509151,139.14,139.13,7.1873]
[1745237979368,0.05509151,139.14,139.12,7.24201314]
[1745237979668,0.05509151,139.14,139.12,0.05421314]
[1745237979971,0.05509151,139.14,139.12,7.24181314]
[1745237980270,0.05509151,139.14,139.12,0.05421314]
[1745237980571,0.05509151,139.14,139.13,7.1873]
[1745237981167,26.3,139.17,139.16,7.1858]
[1745237981373,26.3,139.17,139.11,5.7705]
[1745237982372,26.3,139.17,139.15,7.1863]
[1745237982771,26.34790913,139.17,139.15,7.1863]
[1745237983371,33.53320913,139.17,139.15,7.1863]
[1745237985168,33.53320913,139.17,139.14,7.1865]
[1745237985868,33.53320913,139.17,139.15,7.1862]
[1745237986074,26.34790913,139.17,139.15,7.1862]
[1745237986276,26.34790913,139.17,139.13,0.05025793]
[1745237986875,33.53340913,139.17,139.13,0.05025793]
[1745237987376,33.53340913,139.17,139.14,7.1865]
[1745237988176,33.53340913,139.17,139.15,7.1862]
[1745237988475,7.1858,139.16,139.13,0.05025793]
[1745237988675,26.34790913,139.17,139.13,0.05025793]
[1745237988870,7.1866,139.15,139.13,0.05025793]
[1745237989071,9.76292383,139.16,139.13,0.05025793]
[1745237989277,6.25304599,139.14,139.13,0.05025793]
[1745237989878,6.25304599,139.14,139.13,7.23755793]
[1745237990577,6.25304599,139.14,139.13,0.05025793]
[1745237992375,13.43984599,139.14,139.13,0.05025793]
[1745237996181,7.1888,139.11,139.08,7.1897]
[1745237996378,6.25304599,139.1,139.08,7.1897]
[1745237997479,13.48772512,139.1,139.08,7.24089464]
[1745237997681,6.29862512,139.1,139.08,0.05119464]
[1745237998977,0.04557913,139.1,139.08,0.05119464]
[1745237999385,0.04557913,139.1,139.09,7.1894]
[1745238001895,32.55304599,139.14,139.08,6.30424063]
[1745238002494,32.55304599,139.14,139.12,7.1876]
[1745238002695,32.55304599,139.14,139.09,2.057]
[1745238002899,39.74034599,139.14,139.11,7.1881]
[1745238003094,0.04820978,139.13,139.11,7.1881]
[1745238003594,7.23550978,139.13,139.11,7.1881]
[1745238004597,6.25304599,139.12,139.1,0.05072374]
[1745238005895,6.30125577,139.13,139.1,0.05072374]
[1745238007294,7.1881,139.12,139.1,7.23962374]
[1745238007995,7.1881,139.12,139.1,0.05072374]
[1745238008294,13.44144599,139.11,139.1,0.05072374]
[1745238014899,6.25304599,139.11,139.1,0.05072374]
[1745238018102,13.44144599,139.11,139.1,0.05072374]
[1745238018403,6.25304599,139.09,139.07,7.19]
[1745238018895,13.44284599,139.09,139.06,7.1907]
[1745238019203,6.25304599,139.07,139.02,367.25304599]
[1745238019404,6.25304599,139.07,139.06,0.04965861]
[1745238019601,13.44394599,139.07,139.04,7.1917]
[1745238019801,6.25304599,139.07,139.05,0.05424045]
[1745238020301,7.1909,139.06,139.05,0.05424045]
[1745238020904,6.25304599,139.07,139.05,0.05424045]
[1745238021299,6.25304599,139.07,139.05,7.24524045]
[1745238021500,6.25304599,139.07,139.05,0.05424045]
[1745238021700,26.34939807,139.08,139.05,6.30728644]
[1745238021896,0.04939807,139.08,139.07,7.1904]
[1745238024007,0.04939807,139.08,139.06,7.1907]
[1745238024303,0.04939807,139.08,139.05,0.05424045]
[1745238025301,0.04939807,139.08,139.06,7.1909]
[1745238025903,0.04939807,139.08,139.07,7.1904]
[1745238029399,26.32,139.14,139.1,6.25304599]
[1745238029603,601.79304599,139.17,139.12,6.25304599]
[1745238029799,601.79304599,139.17,139.14,7.1865]
[1745238030002,608.97864599,139.17,139.14,7.1865]
[1745238030506,609.02907251,139.17,139.15,7.1862]
[1745238030709,601.84347251,139.17,139.15,7.1862]
[1745238031306,595.59042652,139.17,139.15,7.1862]
[1745238031508,595.59042652,139.17,139.16,7.1858]
[1745238031706,26.37042652,139.17,139.16,7.1858]
[1745238032005,0.05042652,139.17,139.16,7.1858]
[1745238036506,0.05042652,139.17,139.15,7.1861]
[1745238037214,0.05042652,139.17,139.15,7.1863]
[1745238038013,0.05042652,139.17,139.14,7.23972652]
[1745238038213,0.05042652,139.17,139.14,0.05332652]
[1745238038512,0.05042652,139.17,139.15,7.186]
[1745238039513,0.05042652,139.17,139.14,7.24002652]
[1745238040415,0.05042652,139.17,139.14,0.05332652]
[1745238041110,7.186,139.16,139.14,0.05332652]
[1745238041313,26.3,139.16,139.14,0.05332652]
[1745238041613,7.1863,139.15,139.14,0.05332652]
[1745238043413,9.76711857,139.15,139.05,11.78501857]
[1745238043713,9.76711857,139.13,139.05,28.3179]
[1745238043915,7.1888,139.11,139.07,7.1901]
[1745238044412,7.1889,139.1,139.07,7.1901]
[1745238044716,7.2369266,139.1,139.08,0.05441661]
[1745238045116,0.0480266,139.1,139.08,0.05441661]
[1745238046413,0.0480266,139.1,139.09,7.1894]
[1745238047214,0.0480266,139.1,139.08,0.05441661]
[1745238047215,0.0480266,139.1,139.08,7.24411661]
[1745238049115,7.2370266,139.1,139.08,0.05441661]
[1745238049314,0.0480266,139.1,139.08,0.05441661]
[1745238050317,7.1894,139.09,139.08,0.05441661]
[1745238050618,0.0480266,139.1,139.03,1.9386]
[1745238050818,7.19,139.08,139.05,7.1911]
[1745238051519,7.1904,139.07,139.04,7.1917]
[1745238051818,26.3,139.07,139.04,0.04901351]
[1745238052018,7.1912,139.06,139.04,0.04901351]
[1745238052718,26.34664668,139.07,139.04,0.04901351]
[1745238053210,0.04664668,139.07,139.06,7.1909]
[1745238059417,26.3,139.13,139.05,9.76711857]
[1745238059621,26.3,139.13,139.06,6.0011]
[1745238060122,33.4877,139.13,139.1,7.1889]
[1745238060321,26.3,139.13,139.1,7.1889]
[1745238060520,26.34859168,139.13,139.1,7.23532185]
[1745238060922,26.34859168,139.13,139.1,0.04642185]
[1745238061121,36.11571025,139.13,139.1,0.04642185]
[1745238061923,7.1884,139.11,139.1,0.04642185]
[1745238062121,9.76711857,139.11,139.02,26.3]
[1745238063224,0.05478809,139.08,139.05,0.04783517]
[1745238063726,0.05478809,139.08,139.07,7.1904]
[1745238067136,0.05478809,139.08,139.06,7.1907]
[1745238067833,0.05478809,139.08,139.07,7.1904]
[1745238068433,26.3,139.12,139.11,7.1884]
[1745238068932,26.3,139.12,139.06,32.2333]
[1745238068933,26.3,139.12,139.1,7.1886]
[1745238069534,26.35036265,139.12,139.1,7.24184543]
[1745238070234,33.53836265,139.12,139.1,0.05324543]
[1745238070434,26.35036265,139.12,139.1,0.05324543]
[1745238070634,26.35036265,139.12,139.1,7.24184543]
[1745238071235,33.53826265,139.12,139.1,7.24184543]
[1745238072040,26.35036265,139.12,139.1,7.24184543]
[1745238072837,26.35036265,139.12,139.11,7.1884]
[1745238073040,0.05036265,139.12,139.11,7.1884]
[1745238080143,6.265e-05,139.12,139.11,7.1884]
[1745238080344,26.28,139.18,139.11,3.8857]
[1745238080848,26.28,139.18,139.16,7.1856]
[1745238081145,26.28,139.18,139.11,13.65281857]
[1745238081346,26.32515272,139.18,139.16,7.23245159]
[1745238081643,26.32515272,139.18,139.16,7.1856]
[1745238081948,26.32515272,139.18,139.17,7.1853]
[1745238082246,0.04515272,139.18,139.17,7.1853]
[1745238082748,0.04515272,139.18,139.16,0.047691]
[1745238083446,0.04515272,139.18,139.17,7.1853]
[1745238087345,0.04515272,139.18,139.16,7.233291]
[1745238088148,0.04515272,139.18,139.16,0.047691]
[1745238088850,0.04515272,139.18,139.16,7.233191]
[1745238089045,0.04515272,139.18,139.16,0.047691]
[1745238089551,7.1853,139.17,139.16,0.047691]
[1745238090056,7.23015272,139.18,139.16,0.047691]
[1745238091053,0.04515272,139.18,139.16,0.047691]
[1745238091757,0.04515272,139.18,139.17,7.1853]
[1745238093767,26.26,139.24,139.17,9.76711857]
[1745238093957,36.02711857,139.27,139.17,13.82701857]
[1745238094157,33.4402,139.27,139.19,9.76711857]
[1745238094458,33.4402,139.27,139.23,7.1818]
[1745238094658,7.1809,139.26,139.19,36.02711857]
[1745238094854,26.26,139.27,139.21,7.22911173]
[1745238095062,0.05029775,139.24,139.21,0.04631173]
[1745238096061,0.05029775,139.24,139.23,7.1822]
[1745238096259,0.05029775,139.24,139.21,0.04631173]
[1745238096260,26.26,139.3,139.22,9.76711857]
[1745238096554,7.1804,139.27,139.23,33.442]
[1745238096760,26.26,139.3,139.23,26.26]
[1745238097152,5.9837,139.31,139.24,9.76711857]
[1745238097461,0.04633071,139.29,139.26,0.05307266]
[1745238098463,0.04633071,139.29,139.26,9.82019123]
[1745238099060,0.04633071,139.29,139.28,7.1796]
[1745238099260,0.04633071,139.29,139.27,26.26]
[1745238099462,0.04633071,139.29,139.26,0.05307266]
[1745238101361,0.04633071,139.29,139.28,7.1796]
[1745238102164,604.5077,139.35,139.31,7.1779]
[1745238102463,35.4277,139.35,139.28,26.26]
[1745238102665,35.4277,139.35,139.31,7.1778]
[1745238103262,0.04736158,139.34,139.32,0.04827385]
[1745238104059,0.04736158,139.34,139.32,7.22567385]
[1745238104264,0.04736158,139.34,139.32,0.04827385]
[1745238104665,7.22396158,139.34,139.32,0.04827385]
[1745238104865,0.04736158,139.34,139.32,0.04827385]
[1745238105269,0.04736158,139.34,139.33,7.177]
[1745238105466,26.26,139.38,139.33,9.76711857]
[1745238105668,26.26,139.41,139.33,9.76711857]
[1745238105866,7.1737,139.4,139.36,7.1751]
[1745238106061,26.26,139.41,139.35,9.76711857]
[1745238106468,33.4332,139.41,139.37,7.1747]
[1745238106770,0.04940064,139.39,139.37,0.04662445]
[1745238108171,7.22360064,139.39,139.37,0.04662445]
[1745238108369,0.04940064,139.39,139.37,0.04662445]
[1745238108772,7.22360064,139.39,139.37,0.04662445]
[1745238109070,0.04940064,139.39,139.37,0.04662445]
[1745238109268,0.04940064,139.39,139.37,7.22132445]
[1745238109572,0.04940064,139.39,139.37,0.04662445]
[1745238109769,7.1744,139.38,139.37,0.04662445]
[1745238111971,7.22360064,139.39,139.37,0.04662445]
[1745238112668,0.04940064,139.39,139.32,26.26]
[1745238113173,7.1752,139.37,139.34,7.1762]
[1745238113771,7.1747,139.38,139.34,7.22943279]
[1745238114482,7.1747,139.38,139.35,7.1759]
[1745238114673,7.22350064,139.39,139.34,0.05323279]
[1745238114872,0.04940064,139.39,139.34,0.05323279]
[1745238115375,9.76711857,139.38,139.34,0.05323279]
[1745238115575,9.76711857,139.36,139.29,26.24]
[1745238116068,9.76711857,139.34,139.28,7.1794]
[1745238116270,26.24,139.33,139.28,7.1794]
[1745238116470,7.1781,139.31,139.28,7.1794]
[1745238116773,7.22741666,139.31,139.28,7.22774127]
[1745238117073,7.1787,139.3,139.28,0.04834127]
[1745238117273,0.04931666,139.31,139.28,0.04834127]
[1745238117573,7.22761666,139.31,139.28,0.04834127]
[1745238117777,0.04931666,139.31,139.28,0.04834127]
[1745238118174,21.57,139.44,139.28,9.81545984]
[1745238118473,11.80361857,139.42,139.32,9.76711857]
[1745238118776,2.0365,139.42,139.34,9.76711857]
[1745238119275,1.9581,139.44,139.36,9.76711857]
[1745238119677,0.04758962,139.41,139.39,0.05400989]
[1745238120280,0.04758962,139.41,139.4,7.1731]
[1745238120475,0.04758962,139.41,139.39,0.05400989]
[1745238120777,0.04758962,139.41,139.39,7.22780989]
[1745238120978,0.04758962,139.41,139.39,0.05400989]
[1745238121275,0.04758962,139.41,139.4,7.1734]
[1745238122273,0.04758962,139.41,139.39,0.05400989]
[1745238122776,0.04758962,139.41,139.39,7.22780989]
[1745238122973,0.04758962,139.41,139.39,0.05400989]
[1745238125180,7.1741,139.39,139.35,7.1759]
[1745238125480,15.56639044,139.39,139.3,26.26]
[1745238125674,2.0298,139.38,139.28,15.56639044]
[1745238125880,2.0298,139.38,139.27,30.1094]
[1745238126081,2.0298,139.38,139.32,7.1772]
[1745238126281,2.0298,139.38,139.27,30.1094]
[1745238126483,0.05389937,139.36,139.27,32.0752]
[1745238126682,26.26,139.35,139.32,7.1772]
[1745238126982,0.05080978,139.33,139.32,7.1772]
[1745238127179,0.05080978,139.33,139.31,0.05369952]
[1745238127675,7.1775,139.32,139.31,0.05369952]
[1745238127882,15.61720022,139.33,139.24,26.26]
[1745238128084,15.61720022,139.33,139.22,21.42319044]
[1745238128085,28.1905,139.32,139.22,21.42319044]
[1745238128280,7.1788,139.3,139.22,21.42319044]
[1745238128885,7.1788,139.3,139.27,7.18]
[1745238129284,7.22932074,139.3,139.27,7.18]
[1745238129584,7.1792,139.29,139.26,7.1804]
[1745238129782,0.05052074,139.3,139.25,0.04579757]
[1745238129975,0.05052074,139.3,139.25,7.22669757]
[1745238130175,7.1797,139.28,139.25,7.22669757]
[1745238130378,33.4397,139.28,139.25,7.22669757]
[1745238130580,7.1806,139.26,139.25,0.04579757]
[1745238131384,15.61651513,139.27,139.18,26.26]
[1745238131585,15.56639044,139.27,139.18,26.26]
[1745238131785,7.1812,139.25,139.18,26.26]
[1745238131981,15.56639044,139.27,139.18,26.26]
[1745238132387,0.05030897,139.24,139.21,7.23179458]
[1745238132686,26.31030897,139.24,139.21,7.23179458]
[1745238132891,26.31030897,139.24,139.21,0.04899458]
[1745238133187,41.87669941,139.24,139.21,0.04899458]
[1745238133786,7.1825,139.23,139.21,0.04899458]
[1745238135785,0.05030897,139.24,139.22,7.1823]
[1745238135988,0.05030897,139.24,139.21,0.04899458]
[1745238137492,7.1827,139.22,139.21,0.04899458]
[1745238139192,4.06550897,139.24,139.21,0.04899458]
[1745238140096,7.1825,139.23,139.21,0.04899458]
[1745238141194,7.1827,139.22,139.21,0.04899458]
[1745238142690,7.1839,139.2,139.13,3.8949]
[1745238142893,26.28,139.19,139.13,3.8949]
[1745238143094,26.28,139.19,139.12,26.28]
[1745238143391,7.1848,139.18,139.14,7.1868]
[1745238143597,26.28,139.19,139.11,1.8909]
[1745238143999,0.04829797,139.16,139.14,0.05375009]
[1745238144200,26.28,139.15,139.14,0.05375009]
[1745238144994,33.4663,139.15,139.14,0.05375009]
[1745238145196,26.28,139.15,139.14,0.05375009]
[1745238145396,26.28,139.15,139.14,7.24055009]
[1745238145596,26.28,139.15,139.14,0.05375009]
[1745238146699,26.28,139.15,139.14,7.24055009]
[1745238147798,26.28,139.2,139.14,7.23375009]
[1745238147998,26.28,139.2,139.14,0.05375009]
[1745238149002,26.28,139.2,139.18,7.1843]
[1745238149204,26.28,139.2,139.13,4.0591]
[1745238149399,33.51323387,139.2,139.18,0.04719293]
[1745238149600,33.51323387,139.2,139.13,4.0591]
[1745238149801,33.51323387,139.2,139.18,0.04956237]
[1745238150104,33.51323387,139.2,139.18,0.05411441]
[1745238150402,26.32923387,139.2,139.18,0.05411441]
[1745238151099,26.32923387,139.2,139.18,7.23851441]
[1745238151295,26.32923387,139.2,139.18,0.05411441]
[1745238151697,33.51313387,139.2,139.18,0.05411441]
[1745238152405,26.32923387,139.2,139.18,7.23881441]
[1745238152899,26.32923387,139.2,139.18,0.05411441]
[1745238153105,26.32923387,139.2,139.19,7.1842]
[1745238153404,26.32923387,139.2,139.18,0.05411441]
[1745238154000,26.32923387,139.2,139.18,7.23851441]
[1745238155105,26.32923387,139.2,139.19,7.1842]
[1745238155606,0.04923387,139.2,139.19,7.1842]
[1745238157201,0.04923387,139.2,139.18,7.23861441]
[1745238157398,0.04923387,139.2,139.18,0.05411441]
[1745238157906,0.04923387,139.2,139.19,7.1842]
[1745238159207,0.04923387,139.2,139.18,0.05411441]
[1745238160107,0.04923387,139.2,139.19,7.1842]
[1745238162408,0.04923387,139.2,139.18,7.23871441]
[1745238163009,0.04923387,139.2,139.19,7.1842]
[1745238163706,0.04923387,139.2,139.18,0.05411441]
[1745238164108,0.04923387,139.2,139.19,7.1842]
[1745238164811,0.04923387,139.2,139.18,0.05411441]
[1745238166309,0.04923387,139.2,139.19,7.1842]
[1745238166910,0.04923387,139.2,139.18,7.23861441]
[1745238167113,0.04923387,139.2,139.18,0.05411441]
[1745238167505,0.04923387,139.2,139.18,7.23851441]
[1745238167911,0.04923387,139.2,139.19,7.1842]
[1745238168410,0.04923387,139.2,139.18,7.23861441]
[1745238168603,0.04923387,139.2,139.18,0.05411441]
[1745238168806,26.4,139.19,139.18,0.05411441]
[1745238169207,33.5842,139.19,139.18,0.05411441]
[1745238170814,26.4,139.19,139.18,0.05411441]
[1745238171214,26.4,139.19,139.18,7.23881441]
[1745238171410,26.4,139.19,139.18,0.05411441]
[1745238173716,33.5842,139.19,139.18,0.05411441]
[1745238174408,7.1853,139.17,139.13,3.979]
[1745238175119,7.1853,139.17,139.14,7.1867]
[1745238175513,7.23836762,139.17,139.14,7.23834329]
[1745238176719,7.23836762,139.17,139.15,7.1863]
[1745238177421,7.23836762,139.17,139.14,7.23824329]
[1745238180424,0.05306762,139.17,139.14,0.05164329]
[1745238180923,0.05306762,139.17,139.16,7.1858]
[1745238181823,26.28,139.22,139.16,36.0398472]
[1745238182021,26.28,139.22,139.17,5.8857]
[1745238182223,7.1819,139.24,139.21,7.1827]
[1745238182622,26.28,139.25,139.21,7.1827]
[1745238182821,0.05035771,139.24,139.21,7.23529563]
[1745238183126,7.1827,139.22,139.21,0.05259563]
[1745238184126,7.1824,139.23,139.21,0.05259563]
[1745238184327,0.05035771,139.24,139.21,0.05259563]
[1745238184729,7.1822,139.23,139.21,0.05259563]
[1745238184928,0.05035771,139.24,139.21,0.05259563]
[1745238185631,7.1827,139.22,139.21,0.05259563]
[1745238186831,7.23205771,139.24,139.21,0.05259563]
[1745238187029,0.05035771,139.24,139.22,7.1827]
[1745238187430,0.05035771,139.24,139.21,0.05259563]
[1745238187732,0.05035771,139.24,139.22,7.1827]
[1745238188122,0.05035771,139.24,139.21,0.05259563]
[1745238188327,0.05035771,139.24,139.21,7.23549563]
[1745238188629,7.23225771,139.24,139.21,7.23549563]
[1745238188935,25.34345324,139.34,139.23,9.7598472]
[1745238189127,11.6868472,139.32,139.23,9.7598472]
[1745238189331,26.28,139.31,139.21,36.0398472]
[1745238189733,36.0398472,139.31,139.21,36.0398472]
[1745238190036,0.053762,139.27,139.26,7.1802]
[1745238190334,36.0398472,139.31,139.25,0.05133221]
[1745238190628,0.04699757,139.28,139.26,7.1806]
[1745238190827,0.04699757,139.28,139.25,0.05133221]
[1745238191027,0.04699757,139.28,139.26,7.1802]
[1745238191426,0.04699757,139.28,139.25,0.05133221]
[1745238191839,0.04699757,139.28,139.26,7.1806]
[1745238192035,0.04699757,139.28,139.25,0.05133221]
[1745238193143,0.04699757,139.28,139.26,7.1806]
[1745238194335,0.04699757,139.28,139.25,0.05133221]
[1745238194735,0.04699757,139.28,139.26,7.1804]
[1745238194937,7.1805,139.27,139.25,0.05133221]
[1745238195136,0.04699757,139.28,139.25,0.05133221]
[1745238195935,0.04699757,139.28,139.27,7.1801]
[1745238199540,26.26,139.35,139.31,7.1779]
[1745238199741,9.7598472,139.34,139.25,36.0198472]
[1745238199935,11.1068,139.33,139.25,36.0198472]
[1745238200140,26.26,139.39,139.29,9.7598472]
[1745238200340,1.9854,139.38,139.29,36.0198472]
[1745238200641,7.1758,139.36,139.33,7.1767]
[1745238200843,0.05318088,139.35,139.33,7.1767]
[1745238201643,0.05318088,139.35,139.34,7.1765]
[1745238202540,7.22918088,139.35,139.32,7.22637011]
[1745238203038,7.1765,139.34,139.32,0.04917011]
[1745238203242,26.31318088,139.35,139.32,0.04917011]
[1745238204242,7.1768,139.34,139.32,0.04917011]
[1745238204540,26.31318088,139.35,139.32,0.04917011]
[1745238204740,7.177,139.34,139.32,0.04917011]
[1745238207545,7.177,139.33,139.32,0.04917011]
[1745238208344,26.31318088,139.35,139.32,0.04917011]
[1745238208345,7.1767,139.34,139.32,0.04917011]
[1745238209348,9.7598472,139.33,139.22,9.7598472]
[1745238209546,9.7598472,139.29,139.21,26.26]
[1745238209747,7.1799,139.28,139.25,7.1811]
[1745238210450,7.22960024,139.28,139.25,7.23509758]
[1745238211251,7.22960024,139.28,139.26,7.1806]
[1745238214252,0.04970024,139.28,139.26,7.1806]
[1745238215254,7.22940024,139.28,139.26,7.1806]
[1745238215754,7.1805,139.27,139.25,0.05399758]
[1745238216152,0.04970024,139.28,139.25,0.05399758]
[1745238216558,7.1801,139.27,139.25,7.23489758]
[1745238217258,7.1801,139.27,139.25,0.05399758]
[1745238217756,0.04970024,139.28,139.25,0.05399758]
[1745238217956,0.04970024,139.28,139.26,7.1803]
[1745238219666,0.04970024,139.28,139.25,0.05399758]
[1745238219962,9.7598472,139.27,139.25,0.05399758]
[1745238220162,33.5806,139.26,139.25,0.05399758]
[1745238222567,7.1823,139.23,139.2,7.1835]
[1745238222770,9.7598472,139.25,139.18,26.4]
[1745238222966,11.8469472,139.25,139.19,7.1839]
[1745238223265,7.1828,139.22,139.19,7.1839]
[1745238223668,7.23529088,139.22,139.19,7.23623778]
[1745238224166,0.05249088,139.22,139.19,0.05233778]
[1745238224967,0.05249088,139.22,139.21,7.1832]
[1745238227763,0.05249088,139.22,139.2,7.1835]
[1745238227969,0.05249088,139.22,139.19,0.05233778]
[1745238228470,26.45249088,139.22,139.19,0.05233778]
[1745238229169,7.1837,139.2,139.19,0.05233778]
[1745238231671,26.45249088,139.22,139.19,0.05233778]
[1745238232265,33.63549088,139.22,139.19,0.05233778]
[1745238232471,26.45249088,139.22,139.19,0.05233778]
[1745238234774,7.1836,139.21,139.19,0.05233778]
[1745238239378,26.45249088,139.22,139.19,0.05233778]
[1745238239876,7.1836,139.21,139.19,0.05233778]
[1745238240277,26.45249088,139.22,139.19,0.05233778]
[1745238240470,7.1835,139.21,139.19,0.05233778]
[1745238240978,26.45249088,139.22,139.19,0.05233778]
[1745238241276,33.63549088,139.22,139.19,0.05233778]
[1745238241577,33.63549088,139.22,139.19,7.23633778]
[1745238241781,7.1832,139.21,139.19,7.23633778]
[1745238241996,0.05249088,139.22,139.19,0.05233778]
[1745238242212,0.05249088,139.22,139.21,7.1832]
[1745238244791,0.05249088,139.22,139.2,7.1835]
[1745238245080,0.05249088,139.22,139.19,0.05233778]
[1745238245287,0.05249088,139.22,139.2,7.1837]
[1745238245487,0.05249088,139.22,139.19,0.05233778]
[1745238245980,0.05249088,139.22,139.2,7.1834]
[1745238246685,0.05249088,139.22,139.19,0.05233778]
[1745238246982,26.39249088,139.22,139.19,0.05233778]
[1745238247283,6.24799056,139.2,139.19,0.05233778]
[1745238247883,13.43169056,139.2,139.19,0.05233778]
[1745238249384,7.1837,139.2,139.19,0.05233778]
[1745238253483,7.1835,139.21,139.19,0.05233778]
[1745238253986,7.1836,139.21,139.19,0.05233778]
[1745238255087,7.1837,139.2,139.19,0.05233778]
[1745238259392,7.1855,139.17,139.14,7.1864]
[1745238259693,9.76364514,139.2,139.14,7.1864]
[1745238259884,7.1855,139.17,139.14,7.1864]
[1745238260586,7.1863,139.15,139.14,0.05235545]
[1745238265198,7.186,139.16,139.14,0.05235545]
[1745238266800,7.186,139.16,139.14,7.23905545]
[1745238266999,0.05064784,139.17,139.14,0.05235545]
[1745238267400,0.05064784,139.17,139.15,7.1863]
[1745238268198,0.05064784,139.17,139.14,26.39235545]
[1745238268602,0.05064784,139.17,139.15,7.1859]
[1745238270206,0.05064784,139.17,139.14,33.57895545]
[1745238270406,6.29994185,139.17,139.14,33.57895545]
[1745238270706,13.48544185,139.17,139.14,33.57895545]
[1745238270908,13.48544185,139.17,139.15,7.1862]
[1745238273206,13.48544185,139.17,139.14,7.23895545]
[1745238273709,7.1858,139.16,139.14,0.05235545]
[1745238273910,6.29994185,139.17,139.14,0.05235545]
[1745238274309,7.23614784,139.17,139.14,13.48834946]
[1745238275613,7.1858,139.16,139.14,13.48834946]
[1745238276211,0.05064784,139.17,139.14,13.48834946]
[1745238276415,7.23614784,139.17,139.14,13.48834946]
[1745238276717,0.05064784,139.17,139.14,13.48834946]
[1745238277216,7.23614784,139.17,139.14,13.48834946]
[1745238278317,7.1858,139.16,139.14,13.48834946]
[1745238279317,7.1858,139.16,139.14,6.30164946]
[1745238279615,7.1863,139.15,139.14,6.30164946]
[1745238279818,7.1863,139.15,139.14,0.05235545]
[1745238280118,7.1861,139.16,139.14,0.05235545]
[1745238281718,7.1861,139.16,139.14,7.23915545]
[1745238282119,7.1861,139.16,139.14,0.05235545]
[1745238284118,6.29994185,139.17,139.14,0.05235545]
[1745238284721,7.186,139.16,139.14,0.05235545]
[1745238286724,7.1863,139.15,139.14,0.05235545]
[1745238288820,6.29994185,139.17,139.14,0.05235545]
[1745238289028,7.186,139.16,139.14,0.05235545]
[1745238291927,13.48544185,139.17,139.14,7.23895545]
[1745238292526,7.1859,139.16,139.14,7.23895545]
[1745238293423,13.48544185,139.17,139.14,7.23895545]
[1745238293823,6.29994185,139.17,139.14,7.23895545]
[1745238294327,7.186,139.16,139.14,0.05235545]
[1745238296729,7.1863,139.15,139.14,0.05235545]
[1745238298023,7.1861,139.16,139.14,0.05235545]
[1745238298423,6.29994185,139.17,139.14,0.05235545]
[1745238298623,7.1863,139.15,139.14,0.05235545]
[1745238299329,7.186,139.16,139.14,7.23915545]
[1745238299629,0.05064784,139.17,139.14,0.05235545]
[1745238300421,6.29994185,139.17,139.14,0.05235545]
[1745238300721,7.1862,139.16,139.14,0.05235545]
[1745238303227,7.1863,139.15,139.14,0.05235545]
[1745238305829,13.43559401,139.15,139.14,0.05235545]
[1745238312129,7.1882,139.12,139.09,7.1891]
[1745238312334,13.43749401,139.12,139.09,33.4691]
[1745238312731,6.24929401,139.12,139.09,26.28]
[1745238312933,7.1887,139.11,139.09,26.28]
[1745238313334,7.24262874,139.11,139.09,33.52034014]
[1745238314438,7.24262874,139.11,139.09,26.33094014]
[1745238315334,7.24262874,139.11,139.09,0.05094014]
[1745238315539,13.43819401,139.1,139.09,0.05094014]